[Event "Late-Titled-Tuesday-Blitz-October-17-2023"]
[Site "Chess.com"]
[Date "2023.10.17"]
[Round "1"]
[White "NCchamp"]
[Black "Squirlolz"]
[Result "0-1"]
[WhiteElo "2299"]
[BlackElo "2600"]
[TimeControl "180+1"]
[EndTime "14:01:47 PDT"]
[Termination "Squirlolz won by resignation"]

1. e4 {[%clk 0:02:59.9]} 1... c6 {[%clk 0:02:59.4]} 2. d4 {[%clk 0:02:58.1]}
2... d5 {[%clk 0:03:00.3]} 3. e5 {[%clk 0:02:57.6]} 3... a6 {[%clk 0:02:59.2]}
4. h4 {[%clk 0:02:56.2]} 4... c5 {[%clk 0:02:56.7]} 5. dxc5 {[%clk 0:02:54.8]}
5... Nc6 {[%clk 0:02:55.1]} 6. Nf3 {[%clk 0:02:52.8]} 6... Bg4 {[%clk
0:02:54.5]} 7. Be2 {[%clk 0:02:51]} 7... e6 {[%clk 0:02:54.6]} 8. Bf4 {[%clk
0:02:47.8]} 8... Bxc5 {[%clk 0:02:54]} 9. O-O {[%clk 0:02:45.9]} 9... Bxf3
{[%clk 0:02:48.3]} 10. Bxf3 {[%clk 0:02:45.8]} 10... Qxh4 {[%clk 0:02:49]} 11.
Qd2 {[%clk 0:02:39.8]} 11... Nge7 {[%clk 0:02:45.5]} 12. c3 {[%clk 0:02:37.7]}
12... h6 {[%clk 0:02:34.9]} 13. b4 {[%clk 0:02:26.5]} 13... Ba7 {[%clk
0:02:34.5]} 14. a4 {[%clk 0:02:27.4]} 14... Ng6 {[%clk 0:02:34]} 15. Bg3 {[%clk
0:02:27.1]} 15... Qxg3 {[%clk 0:02:33.2]} 0-1

[Event "Late-Titled-Tuesday-Blitz-October-17-2023"]
[Site "Chess.com"]
[Date "2023.10.17"]
[Round "1"]
[White "jup1978"]
[Black "AlexNovitz"]
[Result "1-0"]
[WhiteElo "2549"]
[BlackElo "2204"]
[TimeControl "180+1"]
[EndTime "14:02:08 PDT"]
[Termination "jup1978 won by resignation"]

1. e4 {[%clk 0:02:59.3]} 1... e6 {[%clk 0:03:00.2]} 2. d4 {[%clk 0:02:58.7]}
2... d5 {[%clk 0:03:00.9]} 3. Nd2 {[%clk 0:02:59.1]} 3... c5 {[%clk 0:03:00.5]}
4. exd5 {[%clk 0:02:57.8]} 4... Qxd5 {[%clk 0:03:01.4]} 5. dxc5 {[%clk
0:02:56.5]} 5... Qxc5 {[%clk 0:03:00.5]} 6. Ngf3 {[%clk 0:02:56.1]} 6... Bd6
{[%clk 0:03:00]} 7. Bd3 {[%clk 0:02:45.7]} 7... Nf6 {[%clk 0:02:57]} 8. O-O
{[%clk 0:02:44.6]} 8... Qc7 {[%clk 0:02:55.7]} 9. Qe2 {[%clk 0:02:41.7]} 9...
O-O {[%clk 0:02:50.6]} 10. Ne4 {[%clk 0:02:35.9]} 10... Nxe4 {[%clk 0:02:45.2]}
11. Qxe4 {[%clk 0:02:36.8]} 11... f5 {[%clk 0:02:45]} 12. Qc4 {[%clk 0:02:29.9]}
12... Qxc4 {[%clk 0:02:41.1]} 13. Bxc4 {[%clk 0:02:30.8]} 13... Kh8 {[%clk
0:02:39.1]} 14. Re1 {[%clk 0:02:28.6]} 14... Re8 {[%clk 0:02:35.3]} 15. Ng5
{[%clk 0:02:19.4]} 15... Nc6 {[%clk 0:02:18.9]} 16. Nf7+ {[%clk 0:02:17.2]} 1-0

[Event "Late-Titled-Tuesday-Blitz-October-17-2023"]
[Site "Chess.com"]
[Date "2023.10.17"]
[Round "1"]
[White "Pingah9"]
[Black "Mbneu"]
[Result "1-0"]
[WhiteElo "2565"]
[BlackElo "2233"]
[TimeControl "180+1"]
[EndTime "14:02:16 PDT"]
[Termination "Pingah9 won by resignation"]

1. e4 {[%clk 0:03:00.9]} 1... e5 {[%clk 0:02:59.1]} 2. Nf3 {[%clk 0:03:00.6]}
2... Nc6 {[%clk 0:02:59.8]} 3. Bb5 {[%clk 0:03:00.6]} 3... Bc5 {[%clk
0:02:59.8]} 4. c3 {[%clk 0:02:59.7]} 4... f5 {[%clk 0:02:59.3]} 5. d3 {[%clk
0:02:43.6]} 5... Nf6 {[%clk 0:02:55.1]} 6. Bg5 {[%clk 0:02:33.6]} 6... O-O
{[%clk 0:02:53.1]} 7. Nbd2 {[%clk 0:02:30]} 7... d6 {[%clk 0:02:51.3]} 8. a4
{[%clk 0:02:26.3]} 8... fxe4 {[%clk 0:02:44.6]} 9. Nxe4 {[%clk 0:02:22.1]} 9...
d5 {[%clk 0:02:17.9]} 10. Nxc5 {[%clk 0:02:17]} 10... e4 {[%clk 0:02:15.6]} 11.
dxe4 {[%clk 0:02:14]} 11... Qd6 {[%clk 0:02:15]} 12. Bxf6 {[%clk 0:02:07.9]}
12... Rxf6 {[%clk 0:02:13]} 13. Qxd5+ {[%clk 0:02:07.1]} 1-0

[Event "Late-Titled-Tuesday-Blitz-October-17-2023"]
[Site "Chess.com"]
[Date "2023.10.17"]
[Round "1"]
[White "DanielTitichoca"]
[Black "Estrategia_vs_Tactica"]
[Result "1-0"]
[WhiteElo "2582"]
[BlackElo "2256"]
[TimeControl "180+1"]
[EndTime "14:02:59 PDT"]
[Termination "DanielTitichoca won by resignation"]

1. c4 {[%clk 0:03:00.9]} 1... Nf6 {[%clk 0:02:59.6]} 2. Nc3 {[%clk 0:02:59.8]}
2... b6 {[%clk 0:03:00.2]} 3. g3 {[%clk 0:03:00.4]} 3... Bb7 {[%clk 0:03:00.8]}
4. Nf3 {[%clk 0:03:00.7]} 4... e5 {[%clk 0:03:00.8]} 5. Bg2 {[%clk 0:03:00.4]}
5... Nc6 {[%clk 0:02:59.7]} 6. Nxe5 {[%clk 0:02:59.4]} 6... Be7 {[%clk
0:02:55.7]} 7. Nf3 {[%clk 0:02:57.8]} 7... O-O {[%clk 0:02:53.6]} 8. O-O {[%clk
0:02:58.4]} 8... Re8 {[%clk 0:02:51.7]} 9. e4 {[%clk 0:02:57.3]} 9... Bf8 {[%clk
0:02:51.4]} 10. Re1 {[%clk 0:02:56.8]} 10... g6 {[%clk 0:02:50.9]} 11. d4 {[%clk
0:02:56.4]} 11... Bg7 {[%clk 0:02:50.3]} 12. e5 {[%clk 0:02:53]} 12... Ng4
{[%clk 0:02:48.7]} 13. Bg5 {[%clk 0:02:50.6]} 13... f6 {[%clk 0:02:40.8]} 14.
exf6 {[%clk 0:02:50.1]} 14... Nxf6 {[%clk 0:02:38.8]} 15. d5 {[%clk 0:02:48.1]}
15... Nb8 {[%clk 0:02:32.9]} 16. Qd2 {[%clk 0:02:46.7]} 16... d6 {[%clk
0:02:30.5]} 17. Nd4 {[%clk 0:02:46.1]} 17... Bc8 {[%clk 0:02:24.2]} 18. Qf4
{[%clk 0:02:46.6]} 18... Rxe1+ {[%clk 0:02:22.1]} 19. Rxe1 {[%clk 0:02:45.4]}
19... Qf8 {[%clk 0:02:16.5]} 20. Ne6 {[%clk 0:02:39.2]} 20... Qe7 {[%clk
0:02:03.8]} 21. Re2 {[%clk 0:02:36.8]} 21... h6 {[%clk 0:01:59.4]} 22. Bxh6
{[%clk 0:02:33.2]} 22... Bxh6 {[%clk 0:01:56.2]} 23. Qxh6 {[%clk 0:02:34.1]}
23... Bxe6 {[%clk 0:01:56.4]} 24. Rxe6 {[%clk 0:02:30.7]} 24... Qf7 {[%clk
0:01:52.2]} 25. Bh3 {[%clk 0:02:24.7]} 25... Nbd7 {[%clk 0:01:50.7]} 26. Ne4
{[%clk 0:02:24.5]} 26... Nxe4 {[%clk 0:01:48.7]} 27. Rxg6+ {[%clk 0:02:23.9]}
1-0

[Event "Late-Titled-Tuesday-Blitz-October-17-2023"]
[Site "Chess.com"]
[Date "2023.10.17"]
[Round "1"]
[White "slowdgehammer"]
[Black "ckgchess"]
[Result "0-1"]
[WhiteElo "2477"]
[BlackElo "2883"]
[TimeControl "180+1"]
[EndTime "14:03:03 PDT"]
[Termination "ckgchess won by resignation"]

1. e4 {[%clk 0:02:59.2]} 1... e5 {[%clk 0:03:00]} 2. Nf3 {[%clk 0:02:53.4]} 2...
Nf6 {[%clk 0:03:00.4]} 3. Nxe5 {[%clk 0:02:52]} 3... d5 {[%clk 0:03:01]} 4. exd5
{[%clk 0:02:50.2]} 4... Qxd5 {[%clk 0:03:01.9]} 5. d4 {[%clk 0:02:45.9]} 5...
Nc6 {[%clk 0:03:02]} 6. Nxc6 {[%clk 0:02:41.9]} 6... Qxc6 {[%clk 0:03:02.9]} 7.
Nc3 {[%clk 0:02:24.9]} 7... Bb4 {[%clk 0:03:02.5]} 8. Bd2 {[%clk 0:02:25.7]}
8... O-O {[%clk 0:03:02]} 9. Qf3 {[%clk 0:02:15]} 9... Re8+ {[%clk 0:03:01.7]}
10. Be2 {[%clk 0:02:08.6]} 10... Bxc3 {[%clk 0:02:50]} 11. bxc3 {[%clk
0:01:52.4]} 11... Bg4 {[%clk 0:02:49.4]} 12. Qxc6 {[%clk 0:01:39.1]} 12... Rxe2+
{[%clk 0:02:48.8]} 13. Kd1 {[%clk 0:01:38.6]} 13... Rxf2+ {[%clk 0:02:31.3]} 14.
Ke1 {[%clk 0:01:14.2]} 14... Re2+ {[%clk 0:02:30.7]} 0-1

[Event "Late-Titled-Tuesday-Blitz-October-17-2023"]
[Site "Chess.com"]
[Date "2023.10.17"]
[Round "1"]
[White "Nick12772"]
[Black "cassoulet"]
[Result "0-1"]
[WhiteElo "2415"]
[BlackElo "2769"]
[TimeControl "180+1"]
[EndTime "14:03:30 PDT"]
[Termination "cassoulet won by resignation"]

1. Nf3 {[%clk 0:03:00.9]} 1... Nf6 {[%clk 0:02:59.6]} 2. g3 {[%clk 0:03:00.7]}
2... g6 {[%clk 0:02:59.6]} 3. Bg2 {[%clk 0:03:01.1]} 3... Bg7 {[%clk 0:03:00.5]}
4. O-O {[%clk 0:03:01.6]} 4... O-O {[%clk 0:03:01.1]} 5. c4 {[%clk 0:03:02]}
5... d6 {[%clk 0:03:01.5]} 6. Nc3 {[%clk 0:03:02.5]} 6... Nbd7 {[%clk
0:03:02.1]} 7. d3 {[%clk 0:03:02.7]} 7... c5 {[%clk 0:03:02.3]} 8. Rb1 {[%clk
0:03:02.6]} 8... a6 {[%clk 0:03:02.5]} 9. a3 {[%clk 0:03:03.2]} 9... Rb8 {[%clk
0:03:02.7]} 10. b4 {[%clk 0:03:03.9]} 10... cxb4 {[%clk 0:03:01.3]} 11. axb4
{[%clk 0:03:04.8]} 11... b5 {[%clk 0:03:00.3]} 12. cxb5 {[%clk 0:03:04.6]} 12...
axb5 {[%clk 0:03:01]} 13. Bb2 {[%clk 0:03:01.6]} 13... Bb7 {[%clk 0:03:00.5]}
14. Nd2 {[%clk 0:02:44.6]} 14... Bxg2 {[%clk 0:02:56.5]} 15. Kxg2 {[%clk
0:02:45.5]} 15... Qb6 {[%clk 0:02:56]} 16. Nce4 {[%clk 0:02:44.4]} 16... Qb7
{[%clk 0:02:51]} 17. Kg1 {[%clk 0:02:42.1]} 17... Rfc8 {[%clk 0:02:50.1]} 18.
Nxf6+ {[%clk 0:02:40.9]} 18... Nxf6 {[%clk 0:02:49.8]} 19. Qb3 {[%clk
0:02:34.7]} 19... Qd5 {[%clk 0:02:47.1]} 20. Rfc1 {[%clk 0:02:18.2]} 20... Qxb3
{[%clk 0:02:45.2]} 21. Nxb3 {[%clk 0:02:19.1]} 21... Nd5 {[%clk 0:02:43.9]} 22.
Bxg7 {[%clk 0:02:15.4]} 22... Kxg7 {[%clk 0:02:44.8]} 23. Nd4 {[%clk 0:01:58.2]}
23... Nc3 {[%clk 0:02:30.7]} 24. Rxc3 {[%clk 0:01:33.6]} 24... Rxc3 {[%clk
0:02:29.6]} 25. Rb2 {[%clk 0:01:34.1]} 25... e5 {[%clk 0:02:26.4]} 26. Nf3
{[%clk 0:01:34.1]} 26... Rbc8 {[%clk 0:02:23.8]} 27. Ra2 {[%clk 0:01:31.6]}
27... Rc2 {[%clk 0:02:19.8]} 28. Ra5 {[%clk 0:01:32]} 28... Rxe2 {[%clk
0:02:18.4]} 29. Rxb5 {[%clk 0:01:32.4]} 29... Rcc2 {[%clk 0:02:17.8]} 30. Rb6
{[%clk 0:01:29.5]} 30... Rxf2 {[%clk 0:02:17.2]} 31. Nh4 {[%clk 0:01:30.2]}
31... Rfd2 {[%clk 0:02:14.4]} 0-1

[Event "Late-Titled-Tuesday-Blitz-October-17-2023"]
[Site "Chess.com"]
[Date "2023.10.17"]
[Round "1"]
[White "ejam94"]
[Black "BrandonJacobson"]
[Result "0-1"]
[WhiteElo "2501"]
[BlackElo "2992"]
[TimeControl "180+1"]
[EndTime "14:03:46 PDT"]
[Termination "BrandonJacobson won by resignation"]

1. e4 {[%clk 0:03:00.3]} 1... c5 {[%clk 0:03:00.1]} 2. Nf3 {[%clk 0:03:00.2]}
2... d6 {[%clk 0:03:00.8]} 3. d4 {[%clk 0:02:59.5]} 3... cxd4 {[%clk 0:03:00.8]}
4. Nxd4 {[%clk 0:03:00.4]} 4... Nf6 {[%clk 0:03:01.4]} 5. Nc3 {[%clk 0:03:00.5]}
5... Nc6 {[%clk 0:03:02.2]} 6. Bg5 {[%clk 0:02:55.5]} 6... e6 {[%clk 0:03:01.8]}
7. Qd2 {[%clk 0:02:53.8]} 7... a6 {[%clk 0:03:02]} 8. Nxc6 {[%clk 0:02:53.7]}
8... bxc6 {[%clk 0:03:02.9]} 9. O-O-O {[%clk 0:02:52.5]} 9... Be7 {[%clk
0:03:03.4]} 10. Bxf6 {[%clk 0:02:52.4]} 10... gxf6 {[%clk 0:03:04.3]} 11. f4
{[%clk 0:02:52.5]} 11... d5 {[%clk 0:02:53.2]} 12. Be2 {[%clk 0:02:35.1]} 12...
Rb8 {[%clk 0:02:42.4]} 13. Rhe1 {[%clk 0:02:23]} 13... Qa5 {[%clk 0:02:38.9]}
14. Kb1 {[%clk 0:02:02.3]} 14... Rxb2+ {[%clk 0:02:21.5]} 15. Kxb2 {[%clk
0:01:58.4]} 15... Ba3+ {[%clk 0:02:22.1]} 16. Ka1 {[%clk 0:01:53.9]} 16... Bb4
{[%clk 0:02:22.6]} 17. Nb1 {[%clk 0:00:58.5]} 17... Bxd2 {[%clk 0:02:23.5]} 18.
Nxd2 {[%clk 0:00:59.1]} 18... Qc3+ {[%clk 0:02:20.9]} 19. Kb1 {[%clk 0:00:58.8]}
19... a5 {[%clk 0:02:21.5]} 20. Bf3 {[%clk 0:00:54.3]} 20... a4 {[%clk 0:02:19]}
0-1

[Event "Late-Titled-Tuesday-Blitz-October-17-2023"]
[Site "Chess.com"]
[Date "2023.10.17"]
[Round "1"]
[White "Boorchess"]
[Black "Jospem"]
[Result "0-1"]
[WhiteElo "2512"]
[BlackElo "3134"]
[TimeControl "180+1"]
[EndTime "14:04:18 PDT"]
[Termination "Jospem won on time"]

1. d4 {[%clk 0:00:50.3]} 1... g6 {[%clk 0:03:00.9]} 2. c4 {[%clk 0:00:49.8]}
2... Bg7 {[%clk 0:03:01.5]} 3. Nf3 {[%clk 0:00:50.1]} 3... d6 {[%clk 0:03:02.2]}
4. g3 {[%clk 0:00:50.4]} 4... Nf6 {[%clk 0:03:02.9]} 5. Bg2 {[%clk 0:00:50.9]}
5... O-O {[%clk 0:03:03.1]} 6. O-O {[%clk 0:00:51.5]} 6... c6 {[%clk 0:03:04]}
7. Nc3 {[%clk 0:00:51.6]} 7... Bf5 {[%clk 0:03:04.7]} 8. Nh4 {[%clk 0:00:48]}
8... Be6 {[%clk 0:03:04.7]} 9. b3 {[%clk 0:00:47.3]} 9... d5 {[%clk 0:03:04.6]}
10. c5 {[%clk 0:00:46.6]} 10... b6 {[%clk 0:03:00.7]} 11. Na4 {[%clk 0:00:22.4]}
11... Nbd7 {[%clk 0:02:59.6]} 12. Qc2 {[%clk 0:00:17.9]} 12... Rc8 {[%clk
0:02:57]} 13. b4 {[%clk 0:00:11.9]} 13... Qc7 {[%clk 0:02:53.2]} 14. Bf4 {[%clk
0:00:10.5]} 14... Qb7 {[%clk 0:02:53.5]} 15. Nc3 {[%clk 0:00:10.3]} 15... h6
{[%clk 0:02:50.7]} 16. Nf3 {[%clk 0:00:09.8]} 16... Bf5 {[%clk 0:02:51]} 17. Qb3
{[%clk 0:00:10.4]} 17... Ne4 {[%clk 0:02:49.3]} 18. Rfc1 {[%clk 0:00:09.9]}
18... g5 {[%clk 0:02:48.2]} 19. Be3 {[%clk 0:00:09.5]} 19... e6 {[%clk
0:02:48.3]} 20. Nd2 {[%clk 0:00:09.3]} 20... Nxd2 {[%clk 0:02:46.5]} 21. Bxd2
{[%clk 0:00:09.6]} 21... Bxd4 {[%clk 0:02:46.8]} 22. e4 {[%clk 0:00:10]} 22...
Bg6 {[%clk 0:02:44.9]} 23. exd5 {[%clk 0:00:09.7]} 23... exd5 {[%clk 0:02:45.8]}
24. h4 {[%clk 0:00:08.7]} 24... bxc5 {[%clk 0:02:44.4]} 25. hxg5 {[%clk
0:00:07.6]} 25... hxg5 {[%clk 0:02:43.4]} 26. bxc5 {[%clk 0:00:06]} 26... Qxb3
{[%clk 0:02:43.3]} 27. axb3 {[%clk 0:00:06.2]} 27... Nxc5 {[%clk 0:02:44.2]} 0-1

[Event "Late-Titled-Tuesday-Blitz-October-17-2023"]
[Site "Chess.com"]
[Date "2023.10.17"]
[Round "1"]
[White "Maksimus1998"]
[Black "shanemelaughcm"]
[Result "1-0"]
[WhiteElo "2615"]
[BlackElo "2308"]
[TimeControl "180+1"]
[EndTime "14:04:24 PDT"]
[Termination "Maksimus1998 won by resignation"]

1. d4 {[%clk 0:02:59.6]} 1... e6 {[%clk 0:02:59.9]} 2. Nf3 {[%clk 0:02:58.4]}
2... f5 {[%clk 0:03:00.1]} 3. Bf4 {[%clk 0:02:57]} 3... b6 {[%clk 0:02:59.1]} 4.
e3 {[%clk 0:02:56]} 4... Bb7 {[%clk 0:02:59]} 5. h3 {[%clk 0:02:56.3]} 5... Nf6
{[%clk 0:02:59.9]} 6. Be2 {[%clk 0:02:54.6]} 6... Be7 {[%clk 0:02:59.2]} 7. O-O
{[%clk 0:02:53.7]} 7... O-O {[%clk 0:02:59.7]} 8. c4 {[%clk 0:02:54.3]} 8... Ne4
{[%clk 0:02:59.8]} 9. Nbd2 {[%clk 0:02:52.2]} 9... d6 {[%clk 0:03:00.1]} 10.
Nxe4 {[%clk 0:02:51.8]} 10... fxe4 {[%clk 0:02:54.8]} 11. Nd2 {[%clk 0:02:50.7]}
11... Nd7 {[%clk 0:02:55.7]} 12. Bg4 {[%clk 0:02:32.7]} 12... Rf6 {[%clk
0:02:45.9]} 13. Qc2 {[%clk 0:02:32]} 13... e5 {[%clk 0:02:13.1]} 14. dxe5 {[%clk
0:02:28.5]} 14... dxe5 {[%clk 0:02:08.7]} 15. Bg3 {[%clk 0:02:21.7]} 15... Nc5
{[%clk 0:01:56.6]} 16. Bxe5 {[%clk 0:02:18.3]} 16... Rf8 {[%clk 0:01:57.2]} 17.
Rad1 {[%clk 0:02:15.4]} 17... Nd3 {[%clk 0:01:55.1]} 18. Bg3 {[%clk 0:02:11.3]}
18... Bf6 {[%clk 0:01:54.6]} 19. Bf5 {[%clk 0:02:00.3]} 19... Nxb2 {[%clk
0:01:44.6]} 20. Rb1 {[%clk 0:01:50.5]} 20... Qe7 {[%clk 0:01:27]} 21. Bxe4
{[%clk 0:01:35.7]} 21... Bxe4 {[%clk 0:01:24.6]} 22. Nxe4 {[%clk 0:01:36.6]} 1-0

[Event "Late-Titled-Tuesday-Blitz-October-17-2023"]
[Site "Chess.com"]
[Date "2023.10.17"]
[Round "1"]
[White "Lady_Nika"]
[Black "mishanick"]
[Result "0-1"]
[WhiteElo "2504"]
[BlackElo "3026"]
[TimeControl "180+1"]
[EndTime "14:04:29 PDT"]
[Termination "mishanick won on time"]

1. e4 {[%clk 0:02:58.6]} 1... d6 {[%clk 0:02:59.5]} 2. d4 {[%clk 0:02:54.3]}
2... Nf6 {[%clk 0:02:59.9]} 3. f3 {[%clk 0:02:53.7]} 3... e5 {[%clk 0:03:00.1]}
4. d5 {[%clk 0:02:53.1]} 4... c6 {[%clk 0:02:59.3]} 5. c4 {[%clk 0:02:52.9]}
5... a6 {[%clk 0:02:34]} 6. Nc3 {[%clk 0:02:52.1]} 6... Be7 {[%clk 0:02:33.1]}
7. Be3 {[%clk 0:02:51.4]} 7... b5 {[%clk 0:02:28.3]} 8. dxc6 {[%clk 0:02:45.1]}
8... bxc4 {[%clk 0:02:26.7]} 9. Bxc4 {[%clk 0:02:45]} 9... Nxc6 {[%clk
0:02:26.3]} 10. Nge2 {[%clk 0:02:44.7]} 10... Be6 {[%clk 0:02:24.9]} 11. Bxe6
{[%clk 0:02:42.8]} 11... fxe6 {[%clk 0:02:25.1]} 12. O-O {[%clk 0:02:43.1]}
12... O-O {[%clk 0:02:24.7]} 13. Qb3 {[%clk 0:02:42.3]} 13... Qd7 {[%clk
0:02:24.9]} 14. Rfd1 {[%clk 0:02:39.5]} 14... Rfb8 {[%clk 0:02:22.2]} 15. Qc2
{[%clk 0:02:29.7]} 15... Qb7 {[%clk 0:02:20.8]} 16. b3 {[%clk 0:02:22.1]} 16...
Rc8 {[%clk 0:02:21.4]} 17. Qb2 {[%clk 0:02:19.5]} 17... a5 {[%clk 0:02:20.7]}
0-1

[Event "Late-Titled-Tuesday-Blitz-October-17-2023"]
[Site "Chess.com"]
[Date "2023.10.17"]
[Round "1"]
[White "frederiksvane"]
[Black "ShadowJolteon"]
[Result "1-0"]
[WhiteElo "2889"]
[BlackElo "2479"]
[TimeControl "180+1"]
[EndTime "14:04:47 PDT"]
[Termination "frederiksvane won by checkmate"]

1. Nf3 {[%clk 0:03:00.9]} 1... Nf6 {[%clk 0:02:58.9]} 2. g3 {[%clk 0:03:01.8]}
2... g6 {[%clk 0:02:54.4]} 3. Bg2 {[%clk 0:03:02.7]} 3... Bg7 {[%clk 0:02:55.1]}
4. O-O {[%clk 0:03:03.6]} 4... O-O {[%clk 0:02:55.3]} 5. b3 {[%clk 0:03:04.3]}
5... d5 {[%clk 0:02:54.9]} 6. Bb2 {[%clk 0:03:04.7]} 6... c5 {[%clk 0:02:54.1]}
7. e3 {[%clk 0:03:05.2]} 7... Nc6 {[%clk 0:02:53.6]} 8. d4 {[%clk 0:03:05.7]}
8... cxd4 {[%clk 0:02:50.4]} 9. Nxd4 {[%clk 0:03:06.6]} 9... Nxd4 {[%clk
0:02:50]} 10. Bxd4 {[%clk 0:03:07.2]} 10... Qc7 {[%clk 0:02:49.6]} 11. Nd2
{[%clk 0:03:02.5]} 11... e5 {[%clk 0:02:48.5]} 12. Bb2 {[%clk 0:03:02.8]} 12...
Be6 {[%clk 0:02:47.9]} 13. c4 {[%clk 0:02:55.5]} 13... Rad8 {[%clk 0:02:42.3]}
14. cxd5 {[%clk 0:02:19.7]} 14... Bxd5 {[%clk 0:02:37.4]} 15. Rc1 {[%clk
0:01:55.1]} 15... Qb8 {[%clk 0:01:36.3]} 16. Qe2 {[%clk 0:01:50.8]} 16... Bxg2
{[%clk 0:01:30.3]} 17. Kxg2 {[%clk 0:01:51.7]} 17... e4 {[%clk 0:01:30.7]} 18.
Bxf6 {[%clk 0:01:50.5]} 18... Bxf6 {[%clk 0:01:29.7]} 19. Nxe4 {[%clk
0:01:51.1]} 19... Bg7 {[%clk 0:01:30.2]} 20. Rfd1 {[%clk 0:01:51.7]} 20... Rfe8
{[%clk 0:01:29.9]} 21. Qf3 {[%clk 0:01:48.4]} 21... Qe5 {[%clk 0:01:26.4]} 22.
Rc5 {[%clk 0:01:40.1]} 22... Qb2 {[%clk 0:01:15.8]} 23. Rc7 {[%clk 0:01:35.4]}
23... Rf8 {[%clk 0:01:14.2]} 24. Rxd8 {[%clk 0:01:34.5]} 24... Rxd8 {[%clk
0:01:04.2]} 25. Qxf7+ {[%clk 0:01:34.4]} 25... Kh8 {[%clk 0:01:03.7]} 26. Rxb7
{[%clk 0:01:20.9]} 26... Qc2 {[%clk 0:01:00.6]} 27. Qxg7# {[%clk 0:01:18.8]} 1-0

[Event "Late-Titled-Tuesday-Blitz-October-17-2023"]
[Site "Chess.com"]
[Date "2023.10.17"]
[Round "1"]
[White "miraitrunks"]
[Black "IamSchrodingersCat"]
[Result "1-0"]
[WhiteElo "2207"]
[BlackElo "2529"]
[TimeControl "180+1"]
[EndTime "14:04:50 PDT"]
[Termination "miraitrunks won by resignation"]

1. e4 {[%clk 0:02:53.2]} 1... c5 {[%clk 0:02:59.2]} 2. c3 {[%clk 0:02:52.9]}
2... g6 {[%clk 0:02:59]} 3. d4 {[%clk 0:02:53.4]} 3... cxd4 {[%clk 0:02:59.9]}
4. cxd4 {[%clk 0:02:54.2]} 4... d5 {[%clk 0:03:00.1]} 5. exd5 {[%clk 0:02:54.6]}
5... Nf6 {[%clk 0:02:59.9]} 6. Bb5+ {[%clk 0:02:53.7]} 6... Nbd7 {[%clk
0:02:56.3]} 7. Nc3 {[%clk 0:02:53.3]} 7... Bg7 {[%clk 0:02:55.7]} 8. Nf3 {[%clk
0:02:50]} 8... O-O {[%clk 0:02:55.4]} 9. O-O {[%clk 0:02:47]} 9... Nb6 {[%clk
0:02:52.3]} 10. Re1 {[%clk 0:02:45.2]} 10... Nbxd5 {[%clk 0:02:49]} 11. Bg5
{[%clk 0:02:44.8]} 11... a6 {[%clk 0:02:27]} 12. Bc4 {[%clk 0:02:42.4]} 12...
Nxc3 {[%clk 0:02:25.5]} 13. bxc3 {[%clk 0:02:43.3]} 13... Bg4 {[%clk 0:02:18.2]}
14. h3 {[%clk 0:02:42.4]} 14... Rc8 {[%clk 0:02:15]} 15. Bxf7+ {[%clk
0:02:25.6]} 15... Rxf7 {[%clk 0:02:09.9]} 16. hxg4 {[%clk 0:02:26]} 16... Rxc3
{[%clk 0:01:53.5]} 17. Qe2 {[%clk 0:02:16.7]} 17... Nxg4 {[%clk 0:01:38.8]} 18.
Qe6 {[%clk 0:02:10.9]} 18... Qc8 {[%clk 0:01:25.2]} 19. Qd5 {[%clk 0:02:00.6]}
19... Qc7 {[%clk 0:01:11.4]} 20. Rxe7 {[%clk 0:01:55.1]} 20... Rxf3 {[%clk
0:01:00.8]} 21. Rxc7 {[%clk 0:01:50.1]} 21... Rxf2 {[%clk 0:00:42.8]} 22. Rxf7
{[%clk 0:01:49.7]} 22... Rxf7 {[%clk 0:00:42.2]} 23. Rf1 {[%clk 0:01:48.4]} 1-0

[Event "Late-Titled-Tuesday-Blitz-October-17-2023"]
[Site "Chess.com"]
[Date "2023.10.17"]
[Round "1"]
[White "Tonychess32"]
[Black "Polish_fighter3000"]
[Result "0-1"]
[WhiteElo "2505"]
[BlackElo "3052"]
[TimeControl "180+1"]
[EndTime "14:04:52 PDT"]
[Termination "Polish_fighter3000 won on time"]

1. e4 {[%clk 0:03:00]} 1... b6 {[%clk 0:02:59.4]} 2. d4 {[%clk 0:02:58.8]} 2...
Bb7 {[%clk 0:03:00]} 3. Bd3 {[%clk 0:02:58.9]} 3... e6 {[%clk 0:02:59.4]} 4. Nf3
{[%clk 0:02:58.5]} 4... g6 {[%clk 0:02:58.6]} 5. O-O {[%clk 0:02:58.7]} 5... Bg7
{[%clk 0:02:58.6]} 6. Re1 {[%clk 0:02:59.6]} 6... d6 {[%clk 0:02:58.4]} 7. c3
{[%clk 0:03:00.1]} 7... Nd7 {[%clk 0:02:58.3]} 8. Bf4 {[%clk 0:02:56.5]} 8... e5
{[%clk 0:02:54.7]} 9. Bg5 {[%clk 0:02:52.5]} 9... Ngf6 {[%clk 0:02:51]} 10. dxe5
{[%clk 0:02:45.4]} 10... dxe5 {[%clk 0:02:51.9]} 11. Bb5 {[%clk 0:02:39.7]}
11... O-O {[%clk 0:02:47.7]} 12. Nbd2 {[%clk 0:02:30.9]} 12... h6 {[%clk
0:02:42.6]} 13. Bh4 {[%clk 0:02:12.1]} 13... Qe7 {[%clk 0:02:41.7]} 14. Bxd7
{[%clk 0:01:54.2]} 14... Qxd7 {[%clk 0:02:42.6]} 15. Nxe5 {[%clk 0:01:52.2]}
15... Qb5 {[%clk 0:02:42.1]} 16. Nec4 {[%clk 0:01:32.3]} 16... Nxe4 {[%clk
0:02:33.6]} 17. a4 {[%clk 0:01:13.8]} 17... Qf5 {[%clk 0:02:29.6]} 18. Nxe4
{[%clk 0:01:06]} 18... Bxe4 {[%clk 0:02:30.5]} 19. Ne3 {[%clk 0:00:57]} 19...
Qc5 {[%clk 0:02:28.7]} 20. Qg4 {[%clk 0:00:41.9]} 20... Rfe8 {[%clk 0:02:26.3]}
21. Rad1 {[%clk 0:00:31.5]} 21... g5 {[%clk 0:02:19.9]} 22. Bg3 {[%clk
0:00:29.8]} 22... f5 {[%clk 0:02:19.6]} 23. b4 {[%clk 0:00:11.5]} 23... Qxe3
{[%clk 0:02:15.6]} 0-1